[Event "Titled Tuesday Blitz January 10 Early 2023"]
[White "Estrada Nieto, Julian"]
[Black "Martinez Ramirez, Lennis"]
[WhiteFideId "5101018"]
[BlackFideId "3509079"]
[WhiteElo "2215"]
[BlackElo "2426"]
[Result "0-1"]
[Round "03"]
[TimeControl "180+2"]
[Date "2023.01.10"]
[WhiteClock "0:00:04"]
[BlackClock "0:01:06"]

1. e4 {[%clk 0:03:00]}  c5 {[%clk 0:02:57]} 2. Nf3 {[%clk 0:03:00]}  d6 {[%clk 0:02:53]} 3. Bb5+ {[%clk 0:03:00]}  Bd7 {[%clk 0:02:52]} 4. Bxd7+ {[%clk 0:02:59]}  Qxd7 {[%clk 0:02:53]} 5. O-O {[%clk 0:02:59]}  Nc6 {[%clk 0:02:54]} 6. Re1 {[%clk 0:02:58]}  Nf6 {[%clk 0:02:53]} 7. c3 {[%clk 0:02:59]}  e6 {[%clk 0:02:50]} 8. d4 {[%clk 0:02:59]}  cxd4 {[%clk 0:02:49]} 9. cxd4 {[%clk 0:03:00]}  d5 {[%clk 0:02:50]} 10. e5 {[%clk 0:03:00]}  Ne4 {[%clk 0:02:50]} 11. Nbd2 {[%clk 0:03:01]}  Bb4 {[%clk 0:02:49]} 12. Nxe4 {[%clk 0:02:56]}  dxe4 {[%clk 0:02:49]} 13. Rxe4 {[%clk 0:02:56]}  Rd8 {[%clk 0:02:47]} 14. Bg5 {[%clk 0:02:52]}  Be7 {[%clk 0:02:46]} 15. Rc1 {[%clk 0:02:14]}  O-O {[%clk 0:02:45]} 16. Rg4 {[%clk 0:01:57]}  Bxg5 {[%clk 0:02:44]} 17. Nxg5 {[%clk 0:01:50]}  Nxe5 {[%clk 0:02:36]} 18. Qc2 {[%clk 0:01:24]}  Ng6 {[%clk 0:02:25]} 19. Nf3 {[%clk 0:01:11]}  Rc8 {[%clk 0:02:20]} 20. Qb1 {[%clk 0:01:10]}  Rxc1+ {[%clk 0:02:19]} 21. Qxc1 {[%clk 0:01:10]}  Rc8 {[%clk 0:02:19]} 22. Qd2 {[%clk 0:01:06]}  e5 {[%clk 0:02:18]} 23. Re4 {[%clk 0:01:01]}  Qc6 {[%clk 0:02:17]} 24. Re1 {[%clk 0:00:57]}  Qc2 {[%clk 0:01:54]} 25. Qxc2 {[%clk 0:00:35]}  Rxc2 {[%clk 0:01:55]} 26. dxe5 {[%clk 0:00:31]}  Rxb2 {[%clk 0:01:52]} 27. Rc1 {[%clk 0:00:28]}  h6 {[%clk 0:01:50]} 28. Rc8+ {[%clk 0:00:22]}  Nf8 {[%clk 0:01:44]} 29. h4 {[%clk 0:00:22]}  g6 {[%clk 0:01:44]} 30. Rc7 {[%clk 0:00:20]}  Ne6 {[%clk 0:01:42]} 31. Rd7 {[%clk 0:00:15]}  Kf8 {[%clk 0:01:41]} 32. a4 {[%clk 0:00:12]}  Ke8 {[%clk 0:01:42]} 33. Rd5 {[%clk 0:00:09]}  Rb4 {[%clk 0:01:42]} 34. a5 {[%clk 0:00:08]}  Rb1+ {[%clk 0:01:34]} 35. Kh2 {[%clk 0:00:08]}  Nf4 {[%clk 0:01:30]} 36. Rd4 {[%clk 0:00:06]}  Ne6 {[%clk 0:01:21]} 37. Rd5 {[%clk 0:00:07]}  a6 {[%clk 0:01:18]} 38. g3 {[%clk 0:00:07]}  Rb5 {[%clk 0:01:18]} 39. Rxb5 {[%clk 0:00:05]}  axb5 {[%clk 0:01:19]} 40. Kg2 {[%clk 0:00:05]}  Kd7 {[%clk 0:01:18]} 41. Kf1 {[%clk 0:00:06]}  Kc6 {[%clk 0:01:18]} 42. Ke2 {[%clk 0:00:06]}  b4 {[%clk 0:01:19]} 43. Kd3 {[%clk 0:00:06]}  Kb5 {[%clk 0:01:19]} 44. Nd2 {[%clk 0:00:05]}  Kxa5 {[%clk 0:01:19]} 45. Nc4+ {[%clk 0:00:05]}  Ka4 {[%clk 0:01:16]} 46. Nd6 {[%clk 0:00:06]}  b3 {[%clk 0:01:13]} 47. Kc3 {[%clk 0:00:06]}  b5 {[%clk 0:01:09]} 48. Nxf7 {[%clk 0:00:04]}  Ka3 {[%clk 0:01:09]} 49. Nd6 {[%clk 0:00:04]}  b4+ {[%clk 0:01:09]} 50. Kd2 {[%clk 0:00:04]}  b2 {[%clk 0:01:09]} 51. Nc4+ {[%clk 0:00:04]}  Ka2 {[%clk 0:01:09]} 52. Nxb2 {[%clk 0:00:04]}  Kxb2 {[%clk 0:01:09]} 53. f4 {[%clk 0:00:05]}  h5 {[%clk 0:01:08]} 54. Kd3 {[%clk 0:00:04]}  b3 {[%clk 0:01:08]} 55. Kc4 {[%clk 0:00:05]}  Kc2 {[%clk 0:01:07]} 56. Kd5 {[%clk 0:00:06]}  Ng7 {[%clk 0:01:07]} 57. e6 {[%clk 0:00:06]}  b2 {[%clk 0:01:07]} 58. e7 {[%clk 0:00:04]}  b1=Q {[%clk 0:01:06]} 0-1


[Site "https://www.chess.com"]

[Event "Titled Tuesday Blitz January 10 Early 2023"]
[White "Fromm, Marius"]
[Black "Martin Duque, Jesus"]
[WhiteFideId "12993190"]
[BlackFideId "2208954"]
[WhiteElo "2457"]
[BlackElo "2386"]
[Result "0-1"]
[Round "03"]
[TimeControl "180+2"]
[Date "2023.01.10"]
[WhiteClock "0:00:48"]
[BlackClock "0:02:24"]

1. e4 {[%clk 0:03:00]}  c5 {[%clk 0:02:59]} 2. Nf3 {[%clk 0:03:01]}  b6 {[%clk 0:03:00]} 3. d4 {[%clk 0:02:59]}  cxd4 {[%clk 0:03:01]} 4. Nxd4 {[%clk 0:03:00]}  Bb7 {[%clk 0:03:01]} 5. Nc3 {[%clk 0:02:58]}  a6 {[%clk 0:03:02]} 6. Be3 {[%clk 0:02:55]}  e6 {[%clk 0:03:01]} 7. Qd2 {[%clk 0:02:54]}  Qc7 {[%clk 0:03:01]} 8. a3 {[%clk 0:02:46]}  Nf6 {[%clk 0:03:01]} 9. f3 {[%clk 0:02:45]}  h5 {[%clk 0:03:01]} 10. O-O-O {[%clk 0:02:26]}  Be7 {[%clk 0:02:58]} 11. h4 {[%clk 0:02:18]}  d6 {[%clk 0:02:55]} 12. Kb1 {[%clk 0:02:13]}  Nbd7 {[%clk 0:02:55]} 13. Be2 {[%clk 0:02:01]}  Rc8 {[%clk 0:02:55]} 14. Rh3 {[%clk 0:01:40]}  b5 {[%clk 0:02:55]} 15. Rg3 {[%clk 0:01:34]}  Kf8 {[%clk 0:02:54]} 16. Ndxb5 {[%clk 0:01:33]}  axb5 {[%clk 0:02:54]} 17. Nxb5 {[%clk 0:01:34]}  Qb8 {[%clk 0:02:44]} 18. Nxd6 {[%clk 0:01:33]}  Rc6 {[%clk 0:02:44]} 19. e5 {[%clk 0:01:05]}  Nxe5 {[%clk 0:02:41]} 20. Nxb7 {[%clk 0:01:05]}  Qxb7 {[%clk 0:02:39]} 21. Bd4 {[%clk 0:01:03]}  Rd6 {[%clk 0:02:27]} 22. Rxg7 {[%clk 0:00:55]}  Kxg7 {[%clk 0:02:24]} 23. Qg5+ {[%clk 0:00:48]}  Ng6 {[%clk 0:02:24]} 0-1


[Site "https://www.chess.com"]

[Event "Titled Tuesday Blitz January 10 Early 2023"]
[White "Atakhan, Abtin"]
[Black "Namitbir Singh Walia"]
[WhiteFideId "22502203"]
[BlackFideId "35071068"]
[WhiteElo "2422"]
[BlackElo "2364"]
[Result "1-0"]
[Round "03"]
[TimeControl "180+2"]
[Date "2023.01.10"]
[WhiteClock "0:00:49"]
[BlackClock "0:00:02"]

1. c4 {[%clk 0:03:00]}  Nf6 {[%clk 0:02:59]} 2. g3 {[%clk 0:03:01]}  g6 {[%clk 0:02:59]} 3. Bg2 {[%clk 0:03:01]}  Bg7 {[%clk 0:02:58]} 4. Nc3 {[%clk 0:03:02]}  O-O {[%clk 0:02:57]} 5. Nf3 {[%clk 0:03:02]}  c6 {[%clk 0:02:57]} 6. d3 {[%clk 0:02:48]}  d5 {[%clk 0:02:55]} 7. cxd5 {[%clk 0:02:49]}  cxd5 {[%clk 0:02:56]} 8. O-O {[%clk 0:02:49]}  Nc6 {[%clk 0:02:56]} 9. Bf4 {[%clk 0:02:46]}  d4 {[%clk 0:02:38]} 10. Nb5 {[%clk 0:02:36]}  Nd5 {[%clk 0:02:35]} 11. Bd2 {[%clk 0:02:35]}  Qb6 {[%clk 0:02:32]} 12. a4 {[%clk 0:02:36]}  Rd8 {[%clk 0:02:00]} 13. Qb1 {[%clk 0:02:11]}  Bf5 {[%clk 0:01:07]} 14. Na3 {[%clk 0:01:59]}  Qa6 {[%clk 0:00:45]} 15. Nc4 {[%clk 0:01:56]}  Ndb4 {[%clk 0:00:39]} 16. Nh4 {[%clk 0:01:21]}  Be6 {[%clk 0:00:33]} 17. Qd1 {[%clk 0:00:57]}  Bxc4 {[%clk 0:00:29]} 18. dxc4 {[%clk 0:00:58]}  Qxc4 {[%clk 0:00:20]} 19. Rc1 {[%clk 0:00:58]}  Qa6 {[%clk 0:00:20]} 20. Qb3 {[%clk 0:00:58]}  Qb6 {[%clk 0:00:08]} 21. a5 {[%clk 0:00:56]}  Qxa5 {[%clk 0:00:05]} 22. Bxc6 {[%clk 0:00:54]}  bxc6 {[%clk 0:00:04]} 23. Qxb4 {[%clk 0:00:53]}  Qe5 {[%clk 0:00:04]} 24. Qc4 {[%clk 0:00:51]}  Rab8 {[%clk 0:00:04]} 25. Nf3 {[%clk 0:00:52]}  Qe4 {[%clk 0:00:04]} 26. b3 {[%clk 0:00:50]}  a5 {[%clk 0:00:03]} 27. Qxf7+ {[%clk 0:00:49]}  Kxf7 {[%clk 0:00:02]} 28. Ng5+ {[%clk 0:00:49]} 1-0


[Site "https://www.chess.com"]

[Event "Titled Tuesday Blitz January 10 Early 2023"]
[White "Ortega Ruiz, Jose Miguel"]
[Black "Tillyaev, Ulugbek"]
[WhiteFideId "2209713"]
[BlackFideId "14202441"]
[WhiteElo "2351"]
[BlackElo "2287"]
[Result "1-0"]
[Round "03"]
[TimeControl "180+2"]
[Date "2023.01.10"]
[WhiteClock "0:02:05"]
[BlackClock "0:00:46"]

1. Nf3 {[%clk 0:03:00]}  c5 {[%clk 0:02:52]} 2. g3 {[%clk 0:03:01]}  Nc6 {[%clk 0:02:50]} 3. Bg2 {[%clk 0:03:02]}  g6 {[%clk 0:02:50]} 4. O-O {[%clk 0:03:03]}  Bg7 {[%clk 0:02:49]} 5. e4 {[%clk 0:03:02]}  d6 {[%clk 0:02:48]} 6. Nc3 {[%clk 0:03:03]}  e6 {[%clk 0:02:41]} 7. d3 {[%clk 0:03:03]}  Nge7 {[%clk 0:02:41]} 8. Be3 {[%clk 0:03:04]}  Nd4 {[%clk 0:02:40]} 9. Ne2 {[%clk 0:03:03]}  Nxf3+ {[%clk 0:02:36]} 10. Bxf3 {[%clk 0:03:03]}  Bxb2 {[%clk 0:02:37]} 11. Rb1 {[%clk 0:03:02]}  Bg7 {[%clk 0:02:38]} 12. d4 {[%clk 0:03:02]}  Qc7 {[%clk 0:02:32]} 13. e5 {[%clk 0:03:02]}  dxe5 {[%clk 0:02:26]} 14. dxc5 {[%clk 0:03:02]}  O-O {[%clk 0:02:26]} 15. Qd6 {[%clk 0:03:03]}  Qxd6 {[%clk 0:02:16]} 16. cxd6 {[%clk 0:03:03]}  Nf5 {[%clk 0:02:17]} 17. d7 {[%clk 0:02:59]}  Bxd7 {[%clk 0:02:16]} 18. Rxb7 {[%clk 0:02:59]}  Nxe3 {[%clk 0:02:13]} 19. fxe3 {[%clk 0:02:56]}  Rad8 {[%clk 0:02:12]} 20. Rd1 {[%clk 0:02:50]}  Ba4 {[%clk 0:02:09]} 21. Rxd8 {[%clk 0:02:49]}  Rxd8 {[%clk 0:02:10]} 22. Rxa7 {[%clk 0:02:48]}  Bxc2 {[%clk 0:02:10]} 23. Nc3 {[%clk 0:02:47]}  Rd3 {[%clk 0:02:03]} 24. Ra8+ {[%clk 0:02:24]}  Bf8 {[%clk 0:01:57]} 25. Rc8 {[%clk 0:02:25]}  Rxe3 {[%clk 0:01:55]} 26. Kf2 {[%clk 0:02:25]}  Rd3 {[%clk 0:01:46]} 27. Be4 {[%clk 0:02:19]}  Rxc3 {[%clk 0:01:36]} 28. Rxc3 {[%clk 0:02:17]}  Bxe4 {[%clk 0:01:36]} 29. a4 {[%clk 0:02:18]}  Bb4 {[%clk 0:01:23]} 30. Rc4 {[%clk 0:02:18]}  Ba5 {[%clk 0:01:07]} 31. Rxe4 {[%clk 0:02:17]}  f6 {[%clk 0:01:06]} 32. Rc4 {[%clk 0:02:17]}  f5 {[%clk 0:01:04]} 33. Ke2 {[%clk 0:02:17]}  Kf7 {[%clk 0:01:03]} 34. Rc5 {[%clk 0:02:17]}  Bd8 {[%clk 0:00:59]} 35. a5 {[%clk 0:02:15]}  Kf6 {[%clk 0:00:59]} 36. a6 {[%clk 0:02:16]}  Bb6 {[%clk 0:01:00]} 37. Rc6 {[%clk 0:02:16]}  Bd4 {[%clk 0:01:00]} 38. Rc7 {[%clk 0:02:16]}  h5 {[%clk 0:00:57]} 39. a7 {[%clk 0:02:16]}  Bxa7 {[%clk 0:00:57]} 40. Rxa7 {[%clk 0:02:17]}  g5 {[%clk 0:00:57]} 41. Ra8 {[%clk 0:02:11]}  e4 {[%clk 0:00:51]} 42. Rh8 {[%clk 0:02:09]}  Kg6 {[%clk 0:00:50]} 43. h4 {[%clk 0:02:09]}  gxh4 {[%clk 0:00:46]} 44. gxh4 {[%clk 0:02:10]}  f4 {[%clk 0:00:46]} 45. Rg8+ {[%clk 0:02:10]}  Kf6 {[%clk 0:00:45]} 46. Rg5 {[%clk 0:02:11]}  e5 {[%clk 0:00:45]} 47. Rxh5 {[%clk 0:02:11]}  e3 {[%clk 0:00:45]} 48. Kf3 {[%clk 0:02:11]}  e4+ {[%clk 0:00:44]} 49. Ke2 {[%clk 0:02:04]}  Kg6 {[%clk 0:00:41]} 50. Ra5 {[%clk 0:02:03]}  Kf6 {[%clk 0:00:41]} 51. h5 {[%clk 0:02:03]}  Kg7 {[%clk 0:00:42]} 52. Rf5 {[%clk 0:02:03]}  Kh6 {[%clk 0:00:40]} 53. Rxf4 {[%clk 0:02:03]}  Kxh5 {[%clk 0:00:41]} 54. Rxe4 {[%clk 0:02:03]}  Kg5 {[%clk 0:00:41]} 55. Kxe3 {[%clk 0:02:04]}  Kf5 {[%clk 0:00:42]} 56. Kf3 {[%clk 0:02:04]}  Kf6 {[%clk 0:00:43]} 57. Kf4 {[%clk 0:02:04]}  Kg6 {[%clk 0:00:43]} 58. Re6+ {[%clk 0:02:04]}  Kf7 {[%clk 0:00:44]} 59. Kf5 {[%clk 0:02:04]}  Kg7 {[%clk 0:00:45]} 60. Re7+ {[%clk 0:02:04]}  Kg8 {[%clk 0:00:45]} 61. Kf6 {[%clk 0:02:04]}  Kf8 {[%clk 0:00:46]} 62. Re6 {[%clk 0:02:04]}  Kg8 {[%clk 0:00:45]} 63. Kg6 {[%clk 0:02:05]}  Kf8 {[%clk 0:00:46]} 64. Re3 {[%clk 0:02:05]} 1-0


[Site "https://www.chess.com"]

[Event "Titled Tuesday Blitz January 10 Early 2023"]
[White "Kupervaser, Erez"]
[Black "Sattarov, Bobir"]
[WhiteFideId "2814587"]
[BlackFideId "14203081"]
[WhiteElo "2269"]
[BlackElo "2366"]
[Result "1-0"]
[Round "03"]
[TimeControl "180+2"]
[Date "2023.01.10"]
[WhiteClock "0:00:06"]
[BlackClock "0:00:03"]

1. e4 {[%clk 0:03:00]}  e5 {[%clk 0:02:59]} 2. Nf3 {[%clk 0:03:00]}  Nc6 {[%clk 0:02:59]} 3. d4 {[%clk 0:02:59]}  exd4 {[%clk 0:03:00]} 4. Nxd4 {[%clk 0:03:00]}  Bc5 {[%clk 0:03:00]} 5. Nxc6 {[%clk 0:02:55]}  bxc6 {[%clk 0:02:58]} 6. Bd3 {[%clk 0:02:52]}  Nf6 {[%clk 0:02:53]} 7. O-O {[%clk 0:02:48]}  d6 {[%clk 0:02:49]} 8. Nd2 {[%clk 0:02:37]}  Ng4 {[%clk 0:02:42]} 9. Nf3 {[%clk 0:02:32]}  O-O {[%clk 0:02:20]} 10. h3 {[%clk 0:02:32]}  Ne5 {[%clk 0:02:19]} 11. Nxe5 {[%clk 0:02:31]}  dxe5 {[%clk 0:02:20]} 12. Bc4 {[%clk 0:02:29]}  Qf6 {[%clk 0:02:17]} 13. Qe2 {[%clk 0:02:27]}  Rb8 {[%clk 0:02:16]} 14. Rb1 {[%clk 0:02:11]}  Bd4 {[%clk 0:02:09]} 15. c3 {[%clk 0:02:08]}  Bxc3 {[%clk 0:02:03]} 16. Be3 {[%clk 0:01:46]}  Bd4 {[%clk 0:02:02]} 17. Rfd1 {[%clk 0:01:46]}  c5 {[%clk 0:02:02]} 18. b3 {[%clk 0:01:39]}  Be6 {[%clk 0:01:58]} 19. Rbc1 {[%clk 0:01:38]}  Rb7 {[%clk 0:01:43]} 20. Rc2 {[%clk 0:01:22]}  Bxc4 {[%clk 0:01:15]} 21. Rxc4 {[%clk 0:01:20]}  Qe7 {[%clk 0:01:07]} 22. Rdc1 {[%clk 0:01:17]}  Rd8 {[%clk 0:01:07]} 23. Qe1 {[%clk 0:00:57]}  g6 {[%clk 0:01:05]} 24. g3 {[%clk 0:00:47]}  Rd7 {[%clk 0:01:03]} 25. Kg2 {[%clk 0:00:47]}  h5 {[%clk 0:01:03]} 26. h4 {[%clk 0:00:47]}  Qe6 {[%clk 0:00:58]} 27. Qe2 {[%clk 0:00:33]}  Kg7 {[%clk 0:00:57]} 28. Ra4 {[%clk 0:00:31]}  Qb6 {[%clk 0:00:46]} 29. Ra6 {[%clk 0:00:26]}  Qb4 {[%clk 0:00:46]} 30. Ra4 {[%clk 0:00:16]}  Qb6 {[%clk 0:00:44]} 31. Ra6 {[%clk 0:00:16]}  Qb5 {[%clk 0:00:45]} 32. Qxb5 {[%clk 0:00:15]}  Rxb5 {[%clk 0:00:46]} 33. Kf3 {[%clk 0:00:13]}  Rb7 {[%clk 0:00:42]} 34. Ke2 {[%clk 0:00:13]}  Kf8 {[%clk 0:00:41]} 35. Rc4 {[%clk 0:00:13]}  Ke7 {[%clk 0:00:41]} 36. Rca4 {[%clk 0:00:13]}  Bxe3 {[%clk 0:00:28]} 37. Kxe3 {[%clk 0:00:12]}  Rd4 {[%clk 0:00:27]} 38. Rxa7 {[%clk 0:00:10]}  Rxa7 {[%clk 0:00:25]} 39. Rxa7 {[%clk 0:00:10]}  Kd7 {[%clk 0:00:25]} 40. Ra5 {[%clk 0:00:09]}  Kd6 {[%clk 0:00:25]} 41. Ra6+ {[%clk 0:00:09]}  Kd7 {[%clk 0:00:25]} 42. Rf6 {[%clk 0:00:09]}  c4 {[%clk 0:00:21]} 43. Rxf7+ {[%clk 0:00:07]}  Kc8 {[%clk 0:00:22]} 44. bxc4 {[%clk 0:00:07]}  Rxc4 {[%clk 0:00:23]} 45. Rg7 {[%clk 0:00:07]}  Rc3+ {[%clk 0:00:22]} 46. Ke2 {[%clk 0:00:08]}  Rc2+ {[%clk 0:00:22]} 47. Ke3 {[%clk 0:00:08]}  Rxa2 {[%clk 0:00:22]} 48. Rxg6 {[%clk 0:00:08]}  Ra3+ {[%clk 0:00:23]} 49. Ke2 {[%clk 0:00:08]}  Ra4 {[%clk 0:00:23]} 50. Kf3 {[%clk 0:00:08]}  Ra3+ {[%clk 0:00:23]} 51. Kg2 {[%clk 0:00:08]}  Kb7 {[%clk 0:00:22]} 52. Rg5 {[%clk 0:00:08]}  c5 {[%clk 0:00:20]} 53. Rxe5 {[%clk 0:00:08]}  c4 {[%clk 0:00:20]} 54. Rc5 {[%clk 0:00:07]}  Rc3 {[%clk 0:00:20]} 55. f4 {[%clk 0:00:06]}  Kb6 {[%clk 0:00:20]} 56. Rxh5 {[%clk 0:00:07]}  Rc1 {[%clk 0:00:20]} 57. Rh6+ {[%clk 0:00:06]}  Kb5 {[%clk 0:00:20]} 58. Rh8 {[%clk 0:00:06]}  c3 {[%clk 0:00:19]} 59. Rc8 {[%clk 0:00:07]}  Rc2+ {[%clk 0:00:18]} 60. Kh3 {[%clk 0:00:07]}  Kb4 {[%clk 0:00:18]} 61. Kg4 {[%clk 0:00:07]}  Re2 {[%clk 0:00:19]} 62. e5 {[%clk 0:00:07]}  Re4 {[%clk 0:00:19]} 63. Kf5 {[%clk 0:00:07]}  Rc4 {[%clk 0:00:17]} 64. Rb8+ {[%clk 0:00:07]}  Kc5 {[%clk 0:00:17]} 65. Rb1 {[%clk 0:00:08]}  Kd4 {[%clk 0:00:17]} 66. Rc1 {[%clk 0:00:06]}  Ke3 {[%clk 0:00:17]} 67. e6 {[%clk 0:00:05]}  Kd2 {[%clk 0:00:16]} 68. Rg1 {[%clk 0:00:05]}  c2 {[%clk 0:00:15]} 69. Kf6 {[%clk 0:00:06]}  Re4 {[%clk 0:00:15]} 70. Ra1 {[%clk 0:00:03]}  Ra4 {[%clk 0:00:14]} 71. Rg1 {[%clk 0:00:03]}  Re4 {[%clk 0:00:15]} 72. Ra1 {[%clk 0:00:02]}  Ra4 {[%clk 0:00:15]} 73. Rxa4 {[%clk 0:00:02]}  c1=Q {[%clk 0:00:15]} 74. Rd4+ {[%clk 0:00:03]}  Ke3 {[%clk 0:00:15]} 75. e7 {[%clk 0:00:03]}  Qc6+ {[%clk 0:00:15]} 76. Kf7 {[%clk 0:00:03]}  Qb7 {[%clk 0:00:15]} 77. Rd6 {[%clk 0:00:03]}  Kf3 {[%clk 0:00:15]} 78. Re6 {[%clk 0:00:03]}  Kg4 {[%clk 0:00:14]} 79. Kf8 {[%clk 0:00:03]}  Qb4 {[%clk 0:00:13]} 80. Rg6+ {[%clk 0:00:02]}  Kf5 {[%clk 0:00:12]} 81. Rg7 {[%clk 0:00:03]}  Kf6 {[%clk 0:00:12]} 82. Rf7+ {[%clk 0:00:04]}  Ke6 {[%clk 0:00:12]} 83. f5+ {[%clk 0:00:04]}  Kd7 {[%clk 0:00:11]} 84. f6 {[%clk 0:00:05]}  Qd6 {[%clk 0:00:10]} 85. Kg7 {[%clk 0:00:06]}  Qe6 {[%clk 0:00:08]} 86. Kf8 {[%clk 0:00:07]}  Qd6 {[%clk 0:00:05]} 87. g4 {[%clk 0:00:07]}  Qc5 {[%clk 0:00:05]} 88. g5 {[%clk 0:00:08]}  Qb4 {[%clk 0:00:05]} 89. g6 {[%clk 0:00:08]}  Qa3 {[%clk 0:00:06]} 90. g7 {[%clk 0:00:09]}  Ke6 {[%clk 0:00:04]} 91. g8=Q {[%clk 0:00:05]}  Qa8+ {[%clk 0:00:03]} 92. e8=Q+ {[%clk 0:00:05]}  Qxe8+ {[%clk 0:00:03]} 93. Kxe8 {[%clk 0:00:06]} 1-0


[Site "https://www.chess.com"]

[Event "Titled Tuesday Blitz January 10 Early 2023"]
[White "Sihite, Chelsie Monica Ignesias"]
[Black "Hsu, Li Yang"]
[WhiteFideId "7101198"]
[BlackFideId "5800080"]
[WhiteElo "2266"]
[BlackElo "2427"]
[Result "0-1"]
[Round "03"]
[TimeControl "180+2"]
[Date "2023.01.10"]
[WhiteClock "0:00:20"]
[BlackClock "0:00:06"]

1. e4 {[%clk 0:03:00]}  c6 {[%clk 0:02:58]} 2. d4 {[%clk 0:03:00]}  d5 {[%clk 0:02:59]} 3. Nc3 {[%clk 0:03:01]}  dxe4 {[%clk 0:02:59]} 4. Nxe4 {[%clk 0:03:02]}  Nd7 {[%clk 0:02:59]} 5. Qe2 {[%clk 0:03:01]}  Ndf6 {[%clk 0:02:52]} 6. Nxf6+ {[%clk 0:02:59]}  Nxf6 {[%clk 0:02:51]} 7. Nf3 {[%clk 0:03:00]}  Bf5 {[%clk 0:02:50]} 8. Be3 {[%clk 0:02:59]}  e6 {[%clk 0:02:50]} 9. O-O-O {[%clk 0:02:58]}  Qa5 {[%clk 0:02:49]} 10. Kb1 {[%clk 0:02:53]}  Nd5 {[%clk 0:02:46]} 11. Bd2 {[%clk 0:02:50]}  Qb6 {[%clk 0:02:39]} 12. Qc4 {[%clk 0:02:40]}  Be7 {[%clk 0:02:25]} 13. Qb3 {[%clk 0:02:37]}  O-O {[%clk 0:02:23]} 14. Bc4 {[%clk 0:02:21]}  Rfd8 {[%clk 0:02:21]} 15. Be3 {[%clk 0:02:17]}  h6 {[%clk 0:02:19]} 16. Rhe1 {[%clk 0:02:10]}  Bf6 {[%clk 0:02:17]} 17. Qxb6 {[%clk 0:02:02]}  axb6 {[%clk 0:02:14]} 18. Bb3 {[%clk 0:02:01]}  b5 {[%clk 0:02:14]} 19. h3 {[%clk 0:01:56]}  Be4 {[%clk 0:02:08]} 20. Kc1 {[%clk 0:01:51]}  Bxf3 {[%clk 0:02:06]} 21. gxf3 {[%clk 0:01:52]}  Rd7 {[%clk 0:02:06]} 22. Rg1 {[%clk 0:01:51]}  Kh7 {[%clk 0:02:01]} 23. c3 {[%clk 0:01:52]}  g6 {[%clk 0:01:59]} 24. Bc2 {[%clk 0:01:51]}  Rxa2 {[%clk 0:01:56]} 25. Bb1 {[%clk 0:01:51]}  Ra8 {[%clk 0:01:54]} 26. Bd2 {[%clk 0:01:51]}  Rad8 {[%clk 0:01:50]} 27. h4 {[%clk 0:01:52]}  h5 {[%clk 0:01:49]} 28. Rg2 {[%clk 0:01:48]}  Ne7 {[%clk 0:01:44]} 29. Rdg1 {[%clk 0:01:47]}  b4 {[%clk 0:01:33]} 30. Bg5 {[%clk 0:01:43]}  Bxg5+ {[%clk 0:01:30]} 31. Rxg5 {[%clk 0:01:42]}  Kh6 {[%clk 0:01:29]} 32. Re5 {[%clk 0:01:34]}  bxc3 {[%clk 0:01:27]} 33. bxc3 {[%clk 0:01:33]}  Rd5 {[%clk 0:01:25]} 34. Re3 {[%clk 0:01:30]}  Nf5 {[%clk 0:01:21]} 35. Re4 {[%clk 0:01:24]}  c5 {[%clk 0:01:13]} 36. Ba2 {[%clk 0:01:24]}  R5d6 {[%clk 0:01:11]} 37. dxc5 {[%clk 0:01:25]}  Rc6 {[%clk 0:01:11]} 38. Rb4 {[%clk 0:01:21]}  Rxc5 {[%clk 0:01:10]} 39. Rxb7 {[%clk 0:01:05]}  Rxc3+ {[%clk 0:00:26]} 40. Kb2 {[%clk 0:01:03]}  Rxf3 {[%clk 0:00:21]} 41. Rxf7 {[%clk 0:01:03]}  Rd2+ {[%clk 0:00:20]} 42. Kb1 {[%clk 0:01:01]}  Rfxf2 {[%clk 0:00:17]} 43. Bxe6 {[%clk 0:00:58]}  Nxh4 {[%clk 0:00:14]} 44. Rb7 {[%clk 0:00:51]}  Rf6 {[%clk 0:00:12]} 45. Bg8 {[%clk 0:00:51]}  Rg2 {[%clk 0:00:10]} 46. Rh1 {[%clk 0:00:46]}  Nf3 {[%clk 0:00:10]} 47. Rh7+ {[%clk 0:00:43]}  Kg5 {[%clk 0:00:09]} 48. Rb7 {[%clk 0:00:44]}  Rg1+ {[%clk 0:00:09]} 49. Rxg1+ {[%clk 0:00:42]}  Nxg1 {[%clk 0:00:10]} 50. Kc2 {[%clk 0:00:43]}  Nh3 {[%clk 0:00:10]} 51. Kd2 {[%clk 0:00:42]}  Nf4 {[%clk 0:00:10]} 52. Ke3 {[%clk 0:00:42]}  h4 {[%clk 0:00:07]} 53. Kf3 {[%clk 0:00:43]}  Nh5+ {[%clk 0:00:07]} 54. Kg2 {[%clk 0:00:43]}  Kg4 {[%clk 0:00:07]} 55. Re7 {[%clk 0:00:39]}  Nf4+ {[%clk 0:00:06]} 56. Kh2 {[%clk 0:00:39]}  Rb6 {[%clk 0:00:06]} 57. Re4 {[%clk 0:00:26]}  Rb2+ {[%clk 0:00:06]} 58. Kg1 {[%clk 0:00:25]}  Kf3 {[%clk 0:00:06]} 59. Ra4 {[%clk 0:00:22]}  Ne2+ {[%clk 0:00:06]} 60. Kh1 {[%clk 0:00:20]}  Ng3+ {[%clk 0:00:05]} 61. Kg1 {[%clk 0:00:20]}  Rg2# {[%clk 0:00:06]} 0-1


[Site "https://www.chess.com"]